bitfinex-derivatives/quotes_ETHF0:USTF0_20250912
["timestamp","ask_amount","ask_price","bid_price","bid_amount"]
[1757700614296,0.4037,4611.8,4611.7,0.6899]
[1757700614600,0.2903,4611.7,4611.6,0.294]
[1757700614807,0.694,4611.7,4611.6,0.4858]
[1757700615196,0.4037,4611.7,4611.6,0.6899]
[1757700615896,0.065,4612.0,4611.7,0.294]
[1757700616091,0.1951,4611.9,4611.8,0.6899]
[1757700616297,0.065,4612.0,4611.8,0.3959]
[1757700616600,0.065,4612.0,4611.9,0.6899]
[1757700619193,0.694,4613.0,4612.9,0.4858]
[1757700619390,1.29267791,4613.0,4612.9,0.4858]
[1757700619796,1.29267791,4613.0,4612.9,0.6899]
[1757700620104,1.00237791,4613.0,4612.9,0.6899]
[1757700621298,1.29267791,4613.0,4612.9,0.4858]
[1757700622599,1.00237791,4613.0,4612.9,0.6899]
[1757700623300,0.4037,4613.0,4612.9,0.6899]
[1757700623803,0.694,4612.7,4612.6,0.294]
[1757700624005,0.694,4612.7,4612.2,0.294]
[1757700624301,0.4037,4612.3,4612.2,0.6899]
[1757700625099,0.694,4612.3,4612.2,0.6899]
[1757700625408,0.4037,4612.3,4612.2,0.6899]
[1757700626800,0.1914,4612.6,4612.5,0.3149]
[1757700627011,0.1914,4612.6,4612.5,0.8166]
[1757700627608,0.3038,4613.1,4612.6,0.3078]
[1757700627802,0.7035,4613.1,4613.0,0.5017]
[1757700628002,1.30082593,4613.1,4613.0,0.5017]
[1757700629300,0.3038,4612.9,4612.1,0.3078]
[1757700629508,0.59732593,4612.8,4612.1,0.3078]
[1757700629696,0.3997,4612.8,4612.7,0.6917]
[1757700629896,0.99692924,4612.8,4612.7,0.6917]
[1757700630097,0.1914,4612.8,4612.7,0.6917]
[1757700630299,0.1914,4613.1,4613.0,0.5088]
[1757700630498,0.78859408,4613.1,4613.0,0.8166]
[1757700630701,1.30069408,4613.1,4613.0,0.3078]
[1757700630898,1.30069408,4613.1,4612.5,0.1249]
[1757700631103,0.3997,4612.7,4612.6,0.6917]
[1757700631505,0.7035,4612.7,4612.6,0.5017]
[1757700631806,0.3997,4612.7,4612.6,0.5017]
[1757700632007,0.3997,4612.7,4612.6,0.6917]
[1757700632209,0.7035,4612.7,4612.6,0.6917]
[1757700635008,1.30167089,4612.7,4612.5,0.3781]
[1757700635208,0.7035,4612.7,4612.5,0.3781]
[1757700635609,0.3038,4612.6,4612.5,0.6859]
[1757700635815,0.7035,4612.6,4612.5,0.8798]
[1757700637510,0.7035,4612.6,4612.5,1.0047]
[1757700640309,0.7035,4612.6,4612.5,1.1947]
[1757700640901,0.3997,4612.6,4612.5,1.1947]
[1757700642409,1.00004166,4612.6,4612.5,1.1947]
[1757700644908,1.00004166,4612.6,4612.5,0.3781]
[1757700644909,1.30384166,4612.6,4612.5,0.3781]
[1757700645208,5.52064167,4612.6,4611.6,0.3078]
[1757700645505,1.16932174,4612.4,4611.6,0.3078]
[1757700645706,1.7696634,4612.3,4611.7,0.5017]
[1757700645907,0.78761597,4612.2,4612.0,0.40521117]
[1757700646113,0.78761597,4612.1,4612.0,0.40521117]
[1757700647006,0.60034166,4612.1,4612.0,0.40521117]
[1757700647407,0.60034166,4612.3,4612.0,0.40521117]
[1757700647608,0.60034166,4612.2,4612.0,0.40521117]
[1757700647810,0.60034166,4612.1,4612.0,0.40521117]
[1757700648212,0.60034166,4612.4,4612.0,0.10581117]
[1757700648511,0.60034166,4612.3,4612.1,0.2994]
[1757700648706,0.60034166,4612.2,4611.6,0.3284]
[1757700648911,0.60034166,4612.1,4611.6,0.3284]
[1757700649217,0.60034166,4612.0,4611.6,0.3284]
[1757700649416,0.60034166,4611.9,4611.6,0.3284]
[1757700649919,0.60034166,4611.9,4611.6,0.6278]
[1757700650107,4.60034166,4611.9,4611.6,0.3284]
[1757700650306,0.60034166,4611.8,4611.6,0.3284]
[1757700650511,0.60034166,4611.7,4611.2,0.2994]
[1757700650712,0.60034166,4611.6,4611.1,0.2994]
[1757700650912,0.60034166,4611.5,4610.0,0.1182]
[1757700651116,0.60034166,4611.4,4611.1,0.2994]
[1757700651317,0.60034166,4611.3,4611.1,0.2994]
[1757700651517,0.60034166,4611.2,4611.1,0.2994]
[1757700651719,0.60034166,4611.2,4610.0,0.1182]
[1757700651918,0.60034166,4611.1,4610.0,0.1182]
[1757700652120,0.60034166,4611.7,4610.0,0.1182]
[1757700652417,0.60034166,4611.7,4611.1,0.2994]
[1757700652612,0.60034166,4611.7,4611.1,0.6528]
[1757700653317,4.60034166,4611.7,4611.1,0.6528]
[1757700653518,0.60034166,4611.6,4611.1,0.6528]
[1757700653719,0.60034166,4611.6,4611.1,0.3534]
[1757700653918,0.60034166,4611.6,4611.2,0.2994]
[1757700654316,0.60034166,4611.6,4611.1,0.3534]
[1757700654520,0.60034166,4611.6,4611.3,0.2994]
[1757700654917,4.0,4611.5,4611.1,0.3534]
[1757700655116,0.60034166,4611.4,4611.1,0.3534]
[1757700655415,0.60034166,4611.3,4611.1,0.3534]
[1757700655620,0.60034166,4611.2,4611.1,0.2994]
[1757700657218,0.60034166,4611.2,4610.8,0.3026]
[1757700657517,0.82234166,4611.1,4610.0,0.1182]
[1757700657716,0.82234166,4611.1,4611.0,0.4275]
[1757700660419,4.82234166,4611.1,4610.7,0.6607]
[1757700660619,0.60034166,4611.0,4610.7,0.3581]
[1757700660810,0.60034166,4610.9,4610.0,0.1182]
[1757700661015,21.00034166,4610.9,4610.6,0.3026]
[1757700661215,0.60034166,4610.8,4610.6,0.3026]
[1757700661621,0.60034166,4610.8,4610.0,0.1182]
[1757700661920,0.60034166,4610.8,4610.6,0.3026]
[1757700662123,0.60034166,4610.8,4610.0,0.1182]
[1757700662519,0.60034166,4610.8,4610.6,0.3026]
[1757700662725,0.60034166,4610.8,4610.7,0.7167]
[1757700662921,0.82234166,4610.8,4610.7,0.7167]
[1757700668627,0.60034166,4610.8,4610.7,0.7167]
[1757700668925,0.222,4610.8,4610.7,0.7167]
[1757700669618,0.82234166,4610.8,4610.7,0.7167]
[1757700673125,0.60034166,4610.8,4610.7,0.7167]
[1757700673329,1.16932174,4611.3,4611.2,0.4141]
[1757700673626,1.39132174,4611.6,4611.5,0.12]
[1757700673827,1.16932174,4612.1,4611.5,0.5341]
[1757700674028,0.222,4612.3,4611.9,0.4141]
[1757700674230,0.222,4612.3,4611.9,0.7167]
[1757700676630,0.222,4612.3,4612.2,0.7167]
[1757700678530,1.16932174,4613.3,4613.2,0.7167]
[1757700678728,0.222,4613.6,4613.3,0.3026]
[1757700679037,0.222,4613.6,4613.5,0.4271]
[1757700681338,0.222,4613.6,4613.5,0.8354]
[1757700683640,0.222,4613.6,4613.5,0.4271]
[1757700684039,0.222,4613.6,4613.5,0.6288]
[1757700684447,0.222,4613.6,4613.5,0.8354]
[1757700684740,0.065,4613.8,4613.5,0.8354]
[1757700684941,0.222,4613.7,4613.5,0.5281]
[1757700685142,0.222,4613.7,4613.6,0.7156]
[1757700685440,0.82275994,4613.7,4613.6,0.7156]
[1757700688232,0.82275994,4613.7,4613.6,0.3073]
[1757700689240,0.3026,4613.3,4612.5,0.12]
[1757700689445,0.7077,4612.6,4612.5,0.3834]
[1757700689654,1.53000691,4612.6,4612.5,0.3834]
[1757700689850,1.53000691,4612.6,4612.5,0.5069]
[1757700690053,1.22740691,4612.6,4612.5,0.5069]
[1757700690355,0.82230691,4612.6,4612.5,0.5069]
[1757700690748,0.222,4612.6,4612.5,0.5069]
[1757700691554,0.81936377,4612.6,4612.5,0.8007]
[1757700691755,1.22446377,4612.6,4612.5,0.8007]
[1757700691957,1.52706377,4612.6,4612.5,0.8007]
[1757700692252,0.1046,4612.5,4612.1,0.4084]
[1757700692450,0.7077,4612.2,4612.1,0.7918]
[1757700692646,1.30506377,4612.2,4612.1,0.7918]
[1757700692848,1.30506377,4612.2,4612.1,0.1146]
[1757700693161,1.30506377,4612.2,4612.1,0.5994]
[1757700693750,1.30506377,4612.2,4612.1,0.3056]
[1757700693947,1.30506377,4612.2,4612.1,0.191]
[1757700694149,1.30506377,4612.2,4612.1,0.4848]
[1757700695061,1.30506377,4612.2,4612.1,0.6772]
[1757700696049,0.7077,4612.2,4612.1,0.6772]
[1757700696254,1.30594442,4612.2,4612.1,0.6772]
[1757700699361,0.79914442,4612.2,4612.1,0.6772]
[1757700699563,0.59824442,4612.2,4612.1,0.6772]
[1757700700060,0.7077,4613.3,4613.2,0.191]
[1757700700261,0.9297,4613.3,4613.2,0.6772]
[1757700700450,0.7255,4613.3,4613.2,0.6772]
[1757700701859,0.222,4613.3,4613.2,0.6772]
[1757700704056,0.9297,4613.3,4613.2,0.6772]
[1757700706564,0.222,4613.3,4613.2,0.6772]
[1757700708164,0.065,4613.5,4613.3,0.3037]
[1757700708367,0.065,4613.5,4613.0,0.1235]
[1757700708368,0.065,4613.5,4613.4,0.7021]
[1757700711456,0.222,4614.3,4613.5,0.0743]
[1757700711660,0.222,4614.3,4614.2,0.7021]
[1757700711859,0.7187,4614.3,4614.2,0.7021]
[1757700712059,1.31695593,4614.3,4614.2,0.7021]
[1757700714767,1.51865593,4614.3,4614.2,0.7021]
[1757700716164,1.51865593,4614.3,4614.2,0.2096]
[1757700716368,0.2023,4613.6,4613.5,0.7021]
[1757700716569,0.4967,4613.6,4613.5,0.7021]
[1757700716869,1.29665593,4613.6,4613.5,0.7021]
[1757700719160,1.09495593,4613.6,4613.5,0.7021]
[1757700719463,0.59825593,4613.6,4613.5,0.7767]
[1757700721870,0.90095593,4613.6,4613.5,0.7767]
[1757700722068,1.10165593,4613.6,4613.5,0.7021]
[1757700722376,1.30905593,4613.6,4613.5,0.7021]
[1757700722871,0.59825593,4613.6,4613.5,0.7767]
[1757700723071,1.10165593,4613.6,4613.5,0.7021]
[1757700723773,0.59825593,4613.6,4613.5,0.7767]
[1757700724261,0.59825593,4613.6,4613.5,4.7767]
[1757700724870,0.3027,4614.3,4614.2,0.3862]
[1757700725073,0.3027,4614.3,4614.2,0.6865]
[1757700725367,0.90062267,4614.3,4614.2,0.6865]
[1757700725572,0.59792267,4614.3,4614.2,0.6865]
[1757700725869,0.3677,4615.1,4614.2,4.3862]
[1757700726077,0.59798257,4615.0,4614.9,0.3862]
[1757700726275,0.59798257,4615.0,4614.9,0.6865]
[1757700726671,0.2007,4615.4,4615.3,0.3862]
[1757700726872,1.30876609,4615.4,4615.3,0.6865]
[1757700727466,0.59796609,4615.4,4615.3,0.6865]
[1757700727763,0.5034,4615.9,4615.8,0.6865]
[1757700727972,1.10125724,4615.9,4615.8,0.6865]
[1757700729170,0.7108,4615.9,4615.8,0.6865]
[1757700729367,0.7108,4615.9,4615.8,0.1904]
[1757700729568,0.8351,4615.5,4615.4,0.1904]
[1757700730675,0.8351,4615.0,4614.4,0.3003]
[1757700730971,0.7108,4614.5,4614.4,0.6865]
[1757700731176,0.5034,4614.5,4614.4,0.6865]
[1757700731376,0.1243,4615.0,4614.4,0.6865]
[1757700731573,0.1243,4615.0,4614.5,0.3003]
[1757700731775,0.8351,4615.0,4614.9,0.1904]
[1757700732076,1.43272978,4615.0,4614.9,0.1904]
[1757700732465,1.43272978,4615.0,4614.9,0.3862]
[1757700732671,0.5034,4615.0,4614.9,0.6865]
[1757700732866,0.3027,4615.4,4614.9,0.6865]
[1757700733072,0.3027,4615.5,4615.0,0.3756]
[1757700733266,0.3027,4615.9,4615.5,0.3003]
[1757700733476,1.10091021,4615.8,4615.7,0.3862]
[1757700733676,1.30831021,4615.8,4615.7,0.6865]
[1757700734280,0.5034,4615.8,4615.7,0.6865]
[1757700734578,0.7108,4615.9,4615.8,0.3862]
[1757700734778,0.5324,4615.5,4615.4,0.6865]
[1757700734976,0.8351,4615.5,4615.4,0.6865]
[1757700735280,0.7108,4615.5,4615.4,0.6865]
[1757700735980,0.5034,4615.5,4615.4,0.6865]
[1757700736877,0.2007,4615.5,4615.4,0.6865]
[1757700737077,0.427,4616.0,4615.5,0.3003]
[1757700737279,0.79798741,4615.9,4615.8,0.3862]
[1757700737479,1.10068741,4615.9,4615.8,0.6865]
[1757700737677,0.79798741,4615.9,4615.8,0.6865]
[1757700737869,0.7108,4615.9,4615.8,0.6865]
[1757700738189,0.7108,4615.9,4615.8,0.1904]
[1757700738688,0.7108,4615.9,4615.8,0.3862]
[1757700739378,0.7108,4615.9,4615.8,0.6828]
[1757700741284,0.1942,4615.9,4615.8,0.6828]
[1757700741579,0.4875,4615.9,4615.8,0.6828]
[1757700741784,0.6819,4615.9,4615.8,0.6828]
[1757700742375,1.27893515,4615.9,4615.8,0.6828]
[1757700743677,1.27893515,4615.9,4615.8,0.3862]
[1757700743880,1.27893515,4615.9,4615.6,0.1155]
[1757700744073,0.6819,4615.9,4615.6,0.1155]
[1757700744386,0.59703551,4615.8,4615.6,0.1155]
[1757700744680,1.27894271,4615.7,4615.6,0.1155]
[1757700745279,1.27894271,4615.7,4615.6,0.3101]
[1757700745787,1.27894271,4615.7,4615.6,0.5063]
[1757700745989,0.6819,4615.7,4615.6,0.5063]
[1757700747078,0.0649,4616.6,4615.6,0.5063]
[1757700747280,0.4778,4616.3,4616.2,0.3986]
[1757700747487,1.28447967,4616.3,4616.2,0.3986]
[1757700747683,1.28447967,4616.3,4616.2,0.206]
[1757700747882,0.1146,4616.0,4615.9,0.206]
[1757700748083,0.8019,4616.0,4615.9,0.206]
[1757700748285,1.39907967,4616.0,4615.9,0.3986]
[1757700750781,1.39907967,4616.0,4615.6,0.1155]
[1757700751085,0.6873,4615.7,4615.6,0.5141]
[1757700751290,0.6873,4615.7,4615.6,0.8173]
[1757700752192,1.28515718,4615.7,4615.6,0.8173]
[1757700752494,0.79135718,4615.7,4615.6,0.8173]
[1757700752699,0.6873,4615.7,4615.6,0.5141]
[1757700753094,0.6873,4615.7,4615.6,0.8173]
[1757700753289,1.28547074,4615.7,4615.6,0.8173]
[1757700753790,1.28547074,4615.7,4615.6,0.3215]
[1757700753996,1.28547074,4615.7,4615.6,0.1155]
[1757700754494,1.28547074,4615.7,4615.6,0.3215]
[1757700754892,1.28547074,4615.7,4615.6,0.5141]
[1757700755196,1.28547074,4615.7,4615.6,0.8173]
[1757700757492,1.28547074,4615.7,4615.6,0.5141]
[1757700757697,1.28547074,4615.7,4615.6,0.1155]
[1757700757698,2.45479248,4615.7,4615.6,0.1155]
[1757700757900,1.28547074,4615.7,4615.6,0.1155]
[1757700758393,1.85493299,4615.7,4615.6,0.1155]
[1757700758593,2.45310373,4615.7,4615.6,0.1155]
[1757700759400,1.28547074,4615.7,4615.6,0.1155]
[1757700760496,5.28547074,4615.7,4614.2,0.3302]
[1757700760692,0.1146,4615.5,4614.2,0.3302]
[1757700760900,0.88247074,4615.4,4614.2,0.3302]
[1757700761089,0.1935,4614.3,4614.2,0.7018]
[1757700761294,0.4778,4614.3,4614.2,0.7018]
[1757700761694,0.2843,4615.4,4614.3,0.3032]
[1757700763001,0.79281483,4615.2,4615.1,0.7018]
[1757700763196,1.28661483,4615.2,4615.1,0.7018]
[1757700764199,0.59931483,4615.2,4615.1,0.7018]
[1757700764494,0.59939183,4615.5,4615.4,0.7018]
[1757700765295,0.79289183,4615.5,4615.4,0.7018]
[1757700765498,1.07719183,4615.5,4615.4,0.7018]
[1757700765802,0.79289183,4615.5,4615.4,0.7018]
[1757700766103,0.4778,4615.5,4615.4,0.7018]
[1757700766302,0.6873,4615.5,4615.4,0.7018]
[1757700767196,0.8019,4615.5,4615.4,0.7018]
[1757700768702,0.8019,4615.5,4615.0,0.3032]
[1757700768901,0.8019,4615.5,4614.7,0.3032]
[1757700769105,0.2843,4615.4,4614.8,0.3032]
[1757700769800,0.6676,4615.4,4615.3,0.1947]
[1757700770197,0.6676,4615.4,4615.3,0.7003]
[1757700770407,0.2549,4615.7,4615.6,0.3984]
[1757700770611,1.35413827,4615.7,4615.6,0.3984]
[1757700770908,1.28923827,4615.7,4615.6,0.3984]
[1757700771204,1.28923827,4615.7,4615.6,0.7003]
[1757700771904,1.28923827,4615.7,4615.0,0.1167]
[1757700771905,1.28923827,4615.7,4615.0,0.3019]
[1757700772104,0.6945,4615.1,4615.0,0.3984]
[1757700772305,0.6945,4614.7,4614.6,0.4966]
[1757700772501,0.6945,4614.7,4614.6,0.7003]
[1757700773107,0.19,4614.7,4614.6,0.7003]
[1757700773306,0.3112,4615.0,4614.7,0.3019]
[1757700773502,0.3112,4615.0,4614.9,0.7003]
[1757700773695,0.5012,4615.0,4614.9,0.7003]
[1757700774103,0.6945,4615.0,4614.9,0.7003]
[1757700775003,0.8198,4615.0,4614.9,0.7003]
[1757700775211,0.8198,4615.0,4614.9,0.3984]
[1757700775513,0.8198,4615.0,4614.9,0.7003]
[1757700777310,1.41570479,4615.0,4614.4,0.3107]
[1757700777513,0.6872,4614.5,4614.4,0.6932]
[1757700778106,0.1253,4615.0,4614.4,0.6932]
[1757700778307,0.97747065,4614.9,4614.8,0.6932]
[1757700778708,1.28307065,4614.9,4614.8,0.6932]
[1757700779712,0.6872,4614.9,4614.8,0.6932]
[1757700779908,0.0649,4615.4,4614.8,0.6932]
[1757700780115,1.28302817,4615.3,4615.2,0.6932]
[1757700780304,1.28302817,4615.3,4614.7,0.3107]
[1757700780511,0.4984,4614.8,4614.7,0.6932]
[1757700784520,0.6872,4614.8,4614.7,0.6932]
[1757700790714,0.6872,4614.8,4614.0,0.1233]
[1757700790917,0.6872,4613.7,4613.6,0.6932]
[1757700791217,0.6872,4613.7,4613.6,0.5044]
[1757700791417,0.6872,4613.7,4613.6,0.6932]
[1757700792219,0.1928,4613.7,4613.6,0.6932]
[1757700792415,0.4984,4613.7,4613.6,0.6932]
[1757700793320,0.6872,4613.7,4613.6,0.6932]
[1757700798614,0.6872,4613.7,4613.1,0.3107]
[1757700798821,0.3816,4613.2,4613.1,0.6932]
[1757700799016,0.34095,4614.0,4613.2,0.3107]
[1757700799214,0.317,4614.0,4613.9,0.1937]
[1757700799414,0.6872,4614.0,4613.9,0.6932]
[1757700799926,0.4984,4614.4,4614.1,0.3107]
[1757700800224,0.1242,4615.0,4614.4,0.3107]
[1757700800429,0.6872,4614.5,4614.4,0.5044]
[1757700800817,0.8114,4614.5,4614.4,0.5044]
[1757700801426,0.8114,4614.5,4614.4,0.1937]
[1757700803927,0.6872,4614.5,4614.4,0.6932]
[1757700804422,0.8114,4614.5,4614.4,0.6932]
[1757700804920,0.8114,4614.5,4614.4,0.3825]
[1757700805125,0.8114,4614.5,4614.0,0.3107]
[1757700805325,0.8114,4614.5,4614.4,0.1937]
[1757700805820,0.8114,4614.5,4613.6,0.5317]
[1757700806026,0.1928,4613.7,4613.6,0.9142]
[1757700806226,0.4984,4613.7,4613.6,0.9142]
[1757700807724,0.1928,4613.7,4613.6,0.9142]
[1757700809424,0.5018,4613.7,4613.6,0.9142]
[1757700809625,0.6982,4613.7,4613.6,0.9142]
[1757700810327,0.6982,4613.7,4613.6,0.6035]
[1757700810725,0.395,4613.4,4613.3,0.221]
[1757700810924,0.5076,4613.4,4613.3,0.9277]
[1757700811125,0.704,4613.4,4613.3,0.9277]
[1757700812520,0.1986,4613.4,4613.3,0.9277]
[1757700812733,0.1986,4614.0,4613.9,0.4109]
[1757700813025,1.3004519,4614.0,4613.9,0.7067]
[1757700813225,0.5076,4614.0,4613.9,0.7067]
[1757700813427,0.1986,4614.0,4613.9,0.7067]
[1757700813631,0.5076,4614.0,4613.9,0.7067]
[1757700814230,0.1986,4614.0,4613.9,0.7067]
[1757700816530,0.065,4614.2,4613.9,0.4109]
[1757700816723,0.065,4614.2,4614.1,0.7067]
[1757700818732,0.065,4614.2,4614.1,0.9277]
[1757700821737,0.769,4614.2,4614.1,0.9277]
[1757700823130,0.769,4614.2,4614.1,0.7067]
[1757700826137,0.769,4614.2,4614.1,0.4109]
[1757700826437,0.769,4614.2,4614.1,0.2047]
[1757700826940,0.769,4614.2,4614.1,0.7018]
[1757700831740,0.065,4614.2,4614.1,0.7018]
[1757700835246,0.2885,4614.9,4614.1,0.3945]
[1757700835445,0.6818,4614.9,4614.8,0.6878]
[1757700839947,0.4908,4614.9,4614.8,0.6878]
[1757700840245,0.365,4615.1,4614.8,0.3805]
[1757700840449,0.365,4615.1,4615.0,0.3892]
[1757700840651,0.5556,4615.1,4615.0,0.3892]
[1757700840846,0.065,4615.1,4615.0,0.8035]
[1757700842348,0.065,4615.1,4615.0,1.19331]
[1757700843651,0.065,4615.1,4615.0,0.8035]
[1757700844045,0.065,4615.1,4615.0,1.19331]
[1757700845652,0.065,4615.1,4615.0,5.19331]
[1757700845854,0.3,4615.8,4615.7,0.3892]
[1757700846051,0.4906,4615.8,4615.7,0.9013]
[1757700848050,0.4906,4615.8,4615.7,0.6102]
[1757700848051,0.6896,4615.8,4615.7,0.6102]
[1757700848249,0.6896,4615.8,4615.7,0.4193]
[1757700848650,0.6896,4615.8,4615.7,0.9013]
[1757700849150,0.6896,4615.8,4615.7,0.6102]
[1757700849548,0.4906,4615.8,4615.7,0.9013]
[1757700849847,0.3,4616.4,4615.8,0.2911]
[1757700850053,0.1214,4616.5,4616.2,0.1983]
[1757700850054,1.28460396,4616.3,4616.2,0.1983]
[1757700850649,1.28460396,4616.3,4616.0,0.2911]
[1757700850849,0.6896,4616.1,4616.0,0.4894]
[1757700851054,1.28460396,4616.1,4616.0,0.4894]
[1757700851248,0.6896,4616.1,4616.0,0.4894]
[1757700852752,0.6896,4616.1,4616.0,0.6803]
[1757700856552,0.3,4616.4,4616.1,0.2911]
[1757700856853,0.4906,4616.4,4616.3,0.6803]
[1757700858057,0.1906,4616.4,4616.3,0.6803]
[1757700858353,0.3,4616.7,4616.3,0.6803]
[1757700858554,0.4906,4616.9,4616.8,0.1983]
[1757700858755,1.28439315,4616.9,4616.8,0.4894]
[1757700859249,1.28439315,4616.9,4616.4,0.2911]
[1757700859444,0.6896,4616.9,4616.0,0.1232]
[1757700859750,0.6896,4616.9,4616.1,0.2911]
[1757700859955,0.7545,4616.9,4616.1,0.2911]
[1757700860155,0.98451631,4616.8,4616.7,0.6803]
[1757700860549,0.3896,4616.8,4616.7,0.6803]
[1757700860750,0.6896,4616.8,4616.7,0.6803]
[1757700862452,0.6896,4616.8,4616.0,0.1232]
[1757700862645,0.6896,4616.8,4616.1,0.3161]
[1757700864752,0.6896,4616.8,4616.1,0.2911]
[1757700864953,0.6896,4616.8,4616.2,0.5121]
[1757700865153,0.4906,4616.3,4616.2,0.9013]
[1757700865364,0.6896,4616.3,4616.2,0.9013]
[1757700865861,0.6896,4616.3,4616.2,0.6803]
[1757700866160,0.6896,4616.3,4616.2,0.9013]
[1757700866351,0.4906,4616.3,4616.2,0.9013]
[1757700866552,0.6896,4616.8,4616.7,0.1983]
[1757700867162,1.28505961,4616.8,4616.7,0.4832]
[1757700867357,1.28505961,4616.8,4616.7,0.1983]
[1757700870661,1.28505961,4616.8,4616.7,0.4832]
[1757700871963,1.28505961,4616.8,4616.7,0.1983]
[1757700872366,1.28498934,4616.8,4616.7,0.1983]
[1757700873275,1.28498934,4616.8,4616.7,0.6801]
[1757700873966,0.6896,4616.8,4616.7,0.6801]
[1757700874370,0.4906,4616.8,4616.7,0.6801]
[1757700874571,0.4906,4616.8,4616.5,0.18]
[1757700874572,0.695,4616.8,4616.5,0.18]
[1757700874876,0.395,4616.8,4616.5,0.4649]
[1757700875169,0.395,4616.8,4616.7,0.683]
[1757700875467,0.1808,4617.5,4616.7,0.3981]
[1757700875670,1.29273898,4617.4,4617.3,0.4861]
[1757700875869,1.29273898,4617.4,4616.5,0.1221]
[1757700876068,0.6974,4616.7,4616.6,0.803]
[1757700876264,0.2032,4616.7,4616.6,0.803]
[1757700876566,0.2032,4616.8,4616.7,0.683]
[1757700876767,0.6974,4616.8,4616.7,0.2012]
[1757700877068,0.2898,4616.7,4616.0,0.1232]
[1757700877279,0.493,4616.1,4616.0,0.73791]
[1757700877570,0.493,4616.1,4616.0,0.7423]
[1757700877766,0.6974,4616.1,4616.0,0.683]
[1757700877974,0.6974,4616.1,4616.0,0.4222]
[1757700878173,0.6974,4616.1,4615.7,0.2849]
[1757700878475,0.6974,4615.8,4615.7,0.4222]
[1757700878979,0.6974,4615.8,4615.7,0.2012]
[1757700881473,0.4076,4614.8,4614.7,31.4939]
[1757700881679,0.6974,4614.8,4614.7,31.4939]
[1757700881975,0.6974,4614.8,4614.7,31.209]
[1757700882583,0.6974,4614.8,4614.7,31.4939]
[1757700886081,0.6974,4614.8,4614.7,31.7149]
[1757700887171,0.6974,4614.8,4614.7,31.4939]
[1757700887576,0.6974,4614.8,4614.7,31.7149]
[1757700887979,0.6974,4614.8,4614.7,31.43]
[1757700888481,0.6974,4614.8,4614.7,31.7365]
[1757700889887,0.7085,4614.4,4613.9,0.3065]
[1757700890080,0.7085,4614.4,4614.1,0.3065]
[1757700890487,0.402,4614.4,4614.3,0.2084]
[1757700890787,0.7085,4614.4,4614.3,0.5149]
[1757700891688,0.7085,4614.4,4614.3,0.2084]
[1757700892787,0.7085,4614.4,4614.3,0.5149]
[1757700893283,0.7085,4614.4,4614.3,0.2084]
[1757700895881,0.7085,4614.4,4614.0,0.5275]
[1757700896081,0.7085,4614.3,4614.2,0.2084]
[1757700896692,0.7085,4614.3,4614.2,0.5149]
[1757700896985,0.7085,4614.3,4614.2,0.2084]
[1757700898694,0.7085,4614.3,4614.2,0.5021]
[1757700899394,0.687,4613.6,4613.5,0.9246]
[1757700900186,0.3853,4613.3,4613.2,0.5001]
[1757700900391,0.3853,4613.3,4613.0,31.203]
[1757700900392,0.3017,4613.2,4613.0,31.203]
[1757700900588,0.1146,4613.0,4612.5,0.1148]
[1757700900793,0.687,4612.7,4612.6,0.6309]
[1757700901286,0.687,4612.7,4612.6,0.9246]
[1757700902194,0.3017,4613.4,4612.6,0.6309]
[1757700902493,0.3017,4613.8,4613.3,0.7036]
[1757700902685,0.4923,4614.0,4613.9,0.7036]
[1757700902885,0.8016,4614.0,4613.9,0.7036]
[1757700903290,0.1906,4614.0,4613.9,0.7036]
[1757700903489,0.4923,4614.0,4613.9,0.7036]
[1757700904096,0.808,4614.5,4614.4,0.7036]
[1757700904489,0.808,4614.5,4614.4,0.4099]
[1757700904792,0.4923,4614.8,4614.7,0.7036]
[1757700904990,0.687,4614.8,4614.7,0.4099]
[1757700905489,4.9037,4614.8,4614.1,0.2937]
[1757700905695,0.687,4614.2,4614.1,0.7036]
[1757700905995,0.3017,4614.5,4614.2,0.2937]
[1757700906198,0.4923,4614.5,4614.4,0.7036]
[1757700906495,0.1146,4615.0,4614.4,0.7036]
[1757700906695,0.4923,4615.0,4614.9,0.7036]
[1757700906997,0.687,4615.0,4614.9,0.7036]
[1757700907895,0.8016,4615.0,4614.9,0.7036]
[1757700908094,0.8016,4615.0,4614.1,0.2937]
[1757700908292,0.4923,4613.7,4613.6,0.5001]
[1757700908491,0.687,4613.7,4613.6,0.7036]
[1757700910194,0.1906,4613.7,4613.6,0.7036]
[1757700911597,0.4923,4613.7,4613.6,0.7036]
[1757700912093,0.687,4613.7,4613.2,31.5057]
[1757700912395,0.687,4613.4,4613.3,0.221]
[1757700912894,0.1906,4612.7,4612.6,0.7036]
[1757700913193,0.065,4614.1,4614.0,0.8171]
[1757700913392,0.065,4614.1,4614.0,1.0381]
[1757700913598,0.687,4614.1,4614.0,0.9246]
[1757700913804,0.1146,4614.5,4614.0,1.0381]
[1757700914098,0.8016,4614.5,4614.4,0.4099]
[1757700914299,0.687,4614.5,4614.4,0.7036]
[1757700914891,0.4923,4613.6,4613.5,0.7036]
[1757700915090,0.4923,4613.6,4613.5,0.8171]
[1757700915292,0.1906,4613.6,4613.5,0.8171]
[1757700915595,0.687,4613.6,4613.5,0.2064]
[1757700915992,0.687,4613.6,4613.5,0.7036]
[1757700917698,0.687,4613.6,4613.5,0.2064]
[1757700918302,0.8016,4613.5,4613.4,0.2064]
[1757700918496,0.6069,4613.5,4613.4,0.7036]
[1757700918700,0.687,4613.5,4613.4,0.7036]